fUST/lending_fUST_20250208
["ID","MTS","AMOUNT","RATE_DAILY","PERIOD"]
[352286142,1739028644853,-500.0,0.00011095,2]
[352286144,1739028644863,-500.0,0.00011095,2]
[352286146,1739028644873,-759.68,0.00011095,2]
[352286148,1739028644882,-500.0,0.00011095,2]
[352286150,1739028644892,-500.0,0.00011095,2]
[352286152,1739028644902,-500.0,0.00011095,2]
[352286154,1739028644911,-1431.69,0.00011095,2]
[352286156,1739028644921,-723.31,0.00011095,2]
[352286158,1739028644931,-500.0,0.00011095,2]
[352286160,1739028644940,-4036.51,0.00011095,2]
[352286162,1739028644950,-289.81833978,0.00011095,2]
[352286164,1739028644960,-1422.49,0.00011095,2]
[352286166,1739028644970,-161.01362864,0.00011095,2]
[352286168,1739028644979,-500.0,0.00011095,2]
[352286170,1739028644989,-500.0,0.00011095,2]
[352286172,1739028644998,-500.0,0.00011095,2]
[352286174,1739028645008,-500.0,0.00011095,2]
[352286176,1739028645018,-1021.94,0.00011095,2]
[352286178,1739028645027,-934.34,0.00011095,2]
[352286179,1739028645036,-500.0,0.00011095,2]
[352286181,1739028645046,-500.0,0.00011095,2]
[352286183,1739028645055,-500.0,0.00011095,2]
[352286185,1739028645065,-1181.28,0.00011095,2]
[352286187,1739028645074,-500.0,0.00011095,2]
[352286189,1739028645083,-586.70871007,0.00011095,2]
[352286191,1739028645093,-275.82439092,0.00011095,2]
[352286193,1739028645103,-609.23449922,0.00011095,2]
[352286195,1739028645113,-151.0,0.000111,2]
[352286197,1739028645123,-151.0,0.000111,2]
[352286199,1739028645132,-151.0,0.000111,2]
[352286201,1739028645142,-151.0,0.000111,2]
[352286203,1739028645151,-153.0,0.000111,2]
[352286205,1739028645160,-153.0,0.000111,2]
[352286207,1739028645170,-153.0,0.000111,2]
[352286209,1739028645180,-354.7727591,0.000111,2]
[352286211,1739028645190,-182.1381013,0.000111,2]
[352286213,1739028645200,-354.7727591,0.000111,2]
[352286215,1739028645209,-354.7727591,0.000111,2]
[352286217,1739028645220,-354.7727591,0.000111,2]
[352286219,1739028645229,-750.8207766,0.00011123,2]
[352286221,1739028645239,-151.0,0.00011125,2]
[352286223,1739028645249,-323.919975,0.00011125,2]
[352286225,1739028645259,-323.919975,0.00011125,2]
[352286227,1739028645268,-151.0,0.00011125,2]
[352286229,1739028645278,-409.847552,0.00011125,2]
[352286231,1739028645288,-409.847552,0.00011125,2]
[352286233,1739028645297,-151.341923,0.00011166,2]
[352286235,1739028645307,-151.0,0.00011166,2]
[352286237,1739028645317,-151.0,0.00011166,2]
[352286239,1739028645327,-13265.39216455,0.00011189,2]
[352286241,1739028645336,-151.0,0.000112,2]
[352286243,1739028645345,-151.0,0.000112,2]
[352286245,1739028645355,-151.0,0.000112,2]
[352286247,1739028645364,-151.0,0.00011231,2]
[352286249,1739028645374,-151.0,0.00011231,2]
[352286251,1739028645383,-151.0,0.00011231,2]
[352286253,1739028645394,-500.0,0.00011232,2]
[352286255,1739028645404,-500.0,0.00011232,2]
[352286256,1739028645413,-500.0,0.00011232,2]
[352286259,1739028645423,-500.0,0.00011232,2]
[352286260,1739028645432,-500.0,0.00011232,2]
[352286262,1739028645444,-500.0,0.00011232,2]
[352286264,1739028645454,-479.25959618,0.00011232,2]
[352286266,1739028645463,-500.0,0.00011232,2]
[352286268,1739028645472,-500.0,0.00011232,2]
[352286270,1739028645481,-500.0,0.00011232,2]
[352286272,1739028645491,-500.0,0.00011232,2]
[352286274,1739028645500,-224.552441,0.00011232,2]
[352286276,1739028645509,-224.552441,0.00011232,2]
[352286278,1739028645518,-338.57496787,0.00011232,2]
[352286280,1739028645527,-500.0,0.00011232,2]
[352286282,1739028645537,-500.0,0.00011232,2]
[352286284,1739028645550,-850.583394,0.00011232,2]
[352286287,1739028645563,-500.0,0.00011232,2]
[352286288,1739028645573,-850.583394,0.00011232,2]
[352286290,1739028645584,-500.0,0.00011232,2]
[352286293,1739028645594,-500.0,0.00011232,2]
[352286294,1739028645604,-500.0,0.00011232,2]
[352286297,1739028645613,-500.0,0.00011232,2]
[352286299,1739028645623,-500.0,0.00011232,2]
[352286301,1739028645633,-580.59,0.00011232,2]
[352286303,1739028645643,-151.0,0.00011232,2]
[352286304,1739028645654,-500.0,0.00011232,2]
[352286307,1739028645666,-500.0,0.00011232,2]
[352286309,1739028645675,-500.0,0.00011232,2]
[352286311,1739028645685,-500.0,0.00011232,2]
[352286313,1739028645697,-500.0,0.00011232,2]
[352286315,1739028645706,-500.0,0.00011232,2]
[352286317,1739028645716,-500.0,0.00011232,2]
[352286336,1739028645887,-343.41394,0.00011232,2]
[352286338,1739028645896,-343.41394,0.00011232,2]
[352286340,1739028645906,-500.0,0.00011232,2]
[352286342,1739028645915,-500.0,0.00011232,2]
[352286344,1739028645924,-504.1575931,0.00011232,2]
[352286346,1739028645934,-500.0,0.00011232,2]
[352286348,1739028645947,-500.0,0.00011232,2]
[352286350,1739028645956,-500.0,0.00011232,2]
[352286352,1739028645965,-500.0,0.00011232,2]
[352286354,1739028645974,-500.0,0.00011232,2]
[352286356,1739028645983,-500.0,0.00011232,2]
[352286358,1739028645993,-500.0,0.00011232,2]
[352286360,1739028646003,-759.3,0.00011232,2]
[352286362,1739028646012,-500.0,0.00011232,2]
[352286364,1739028646022,-1403.03,0.00011232,2]
[352286366,1739028646032,-500.0,0.00011232,2]
[352286368,1739028646041,-151.0,0.00011232,2]
[352286370,1739028646051,-271.939146,0.00011232,2]
[352286372,1739028646060,-500.0,0.00011232,2]
[352286374,1739028646070,-500.0,0.00011232,2]
[352286376,1739028646080,-271.939146,0.00011232,2]
[352286378,1739028646089,-500.0,0.00011232,2]
[352286380,1739028646099,-500.0,0.00011232,2]
[352286382,1739028646109,-728.24,0.00011232,2]
[352286384,1739028646118,-500.0,0.00011232,2]
[352286386,1739028646128,-500.0,0.00011232,2]
[352286388,1739028646137,-500.0,0.00011232,2]
[352286390,1739028646146,-500.0,0.00011232,2]
[352286392,1739028646156,-500.0,0.00011232,2]
[352286394,1739028646165,-545.32,0.00011232,2]
[352286396,1739028646175,-500.0,0.00011232,2]
[352286398,1739028646185,-208.65336372,0.00011232,2]
[352286400,1739028646197,-1305.14,0.00011232,2]
[352286402,1739028646207,-500.0,0.00011232,2]
[352286404,1739028646217,-500.0,0.00011232,2]
[352286406,1739028646227,-648.66,0.00011232,2]
[352286408,1739028646236,-1325.01,0.00011232,2]
[352286410,1739028646246,-552.73,0.00011232,2]
[352286412,1739028646257,-276.79606257,0.00011232,2]
[352286414,1739028646267,-506.43130944,0.00011232,2]
[352286416,1739028646276,-500.0,0.00011232,2]
[352286418,1739028646285,-500.0,0.00011232,2]
[352286420,1739028646295,-546.2,0.00011232,2]
[352286422,1739028646305,-500.0,0.00011232,2]
[352286424,1739028646314,-304.28702336,0.00011232,2]
[352286426,1739028646324,-500.0,0.00011232,2]
[352286428,1739028646333,-503.32902953,0.00011232,2]
[352286430,1739028646342,-500.0,0.00011232,2]
[352286432,1739028646352,-970.43,0.00011232,2]
[352286434,1739028646362,-1101.61299,0.00011232,2]
[352286436,1739028646372,-565.77,0.00011232,2]
[352286438,1739028646382,-500.0,0.00011232,2]
[352286440,1739028646392,-500.0,0.00011232,2]
[352286442,1739028646401,-500.0,0.00011232,2]
[352286444,1739028646411,-1101.61299,0.00011232,2]
[352286446,1739028646421,-500.0,0.00011232,2]
[352286448,1739028646431,-500.0,0.00011232,2]
[352286450,1739028646442,-500.0,0.00011232,2]
[352286452,1739028646451,-500.0,0.00011232,2]
[352286454,1739028646461,-500.0,0.00011232,2]
[352286456,1739028646470,-789.607995,0.00011232,2]
[352286458,1739028646480,-789.607995,0.00011232,2]
[352286460,1739028646490,-500.0,0.00011232,2]
[352286462,1739028646500,-789.607995,0.00011232,2]
[352286464,1739028646510,-789.607995,0.00011232,2]
[352286466,1739028646520,-500.0,0.00011232,2]
[352286468,1739028646530,-500.0,0.00011232,2]
[352286470,1739028646540,-500.0,0.00011232,2]
[352286472,1739028646550,-500.0,0.00011232,2]
[352286474,1739028646560,-504.06265539,0.00011232,2]
[352286476,1739028646570,-500.0,0.00011232,2]
[352286478,1739028646580,-500.0,0.00011232,2]
[352286480,1739028646593,-1270.63,0.00011232,2]
[352286482,1739028646602,-1078.52,0.00011232,2]
[352286484,1739028646614,-610.78,0.00011232,2]
[352286486,1739028646624,-500.0,0.00011232,2]
[352286488,1739028646633,-151.0,0.00011232,2]
[352286490,1739028646643,-151.0,0.00011232,2]
[352286492,1739028646653,-500.0,0.00011232,2]
[352286494,1739028646662,-500.0,0.00011232,2]
[352286496,1739028646672,-500.0,0.00011232,2]
[352286498,1739028646682,-500.0,0.00011232,2]
[352286500,1739028646693,-151.0,0.00011232,2]
[352286502,1739028646703,-151.0,0.00011232,2]
[352286504,1739028646712,-458.35517356,0.00011232,2]
[352286506,1739028646722,-977.07,0.00011232,2]
[352286508,1739028646732,-500.0,0.00011232,2]
[352286510,1739028646742,-500.0,0.00011232,2]
[352286512,1739028646752,-500.43,0.00011232,2]
[352286514,1739028646761,-500.0,0.00011232,2]
[352286516,1739028646771,-606.56,0.00011232,2]
[352286518,1739028646780,-500.0,0.00011232,2]
[352286520,1739028646789,-500.0,0.00011232,2]
[352286522,1739028646799,-587.49,0.00011232,2]
[352286524,1739028646808,-636.281112,0.00011232,2]
[352286526,1739028646819,-636.281112,0.00011232,2]
[352286528,1739028646829,-500.0,0.00011232,2]
[352286530,1739028646838,-156.241418,0.00011232,2]
[352286532,1739028646848,-1089.29,0.00011232,2]
[352286534,1739028646858,-636.281112,0.00011232,2]
[352286536,1739028646867,-636.281112,0.00011232,2]
[352286538,1739028646877,-156.241418,0.00011232,2]
[352286540,1739028646887,-500.0,0.00011232,2]
[352286542,1739028646897,-500.0,0.00011232,2]
[352286544,1739028646906,-364.44984337,0.00011232,2]
[352286546,1739028646916,-368.655151,0.00011232,2]
[352286548,1739028646925,-368.655151,0.00011232,2]
[352286550,1739028646934,-500.0,0.00011232,2]
[352286552,1739028646944,-368.655151,0.00011232,2]
[352286554,1739028646954,-368.655151,0.00011232,2]
[352286556,1739028646963,-500.0,0.00011232,2]
[352286558,1739028646973,-500.0,0.00011232,2]
[352286560,1739028646983,-151.0,0.00011232,2]
[352286562,1739028646992,-500.0,0.00011232,2]
[352286564,1739028647002,-500.0,0.00011232,2]
[352286566,1739028647011,-262.55,0.00011232,2]
[352286568,1739028647021,-262.55,0.00011232,2]
[352286570,1739028647031,-739.39,0.00011232,2]
[352286572,1739028647040,-500.0,0.00011232,2]
[352286574,1739028647049,-262.55,0.00011232,2]
[352286576,1739028647059,-262.55,0.00011232,2]
[352286578,1739028647068,-500.0,0.00011232,2]
[352286580,1739028647078,-500.0,0.00011232,2]
[352286582,1739028647087,-659.83,0.00011232,2]
[352286584,1739028647096,-519.09,0.00011232,2]
[352286586,1739028647107,-500.0,0.00011232,2]
[352286588,1739028647117,-500.0,0.00011232,2]
[352286590,1739028647127,-500.0,0.00011232,2]
[352286592,1739028647137,-500.0,0.00011232,2]
[352286594,1739028647146,-500.70528006,0.00011232,2]
[352286596,1739028647155,-500.0,0.00011232,2]
[352286597,1739028647164,-151.0,0.00011232,2]
[352286599,1739028647173,-151.0,0.00011232,2]
[352286601,1739028647183,-500.0,0.00011232,2]
[352286602,1739028647194,-500.0,0.00011232,2]
[352286604,1739028647204,-500.0,0.00011232,2]
[352286606,1739028647213,-178.7874689,0.00011232,2]
[352286608,1739028647224,-1619.3,0.00011232,2]
[352286609,1739028647234,-500.0,0.00011232,2]
[352286611,1739028647245,-500.0,0.00011232,2]
[352286613,1739028647255,-573.25,0.00011232,2]
[352286615,1739028647264,-500.0,0.00011232,2]
[352286616,1739028647275,-3183.87,0.00011232,2]
[352286618,1739028647286,-500.0,0.00011232,2]
[352286620,1739028647297,-500.0,0.00011232,2]
[352286622,1739028647308,-500.0,0.00011232,2]
[352286624,1739028647319,-500.0,0.00011232,2]
[352286625,1739028647329,-1717.07,0.00011232,2]
[352286627,1739028647339,-4822.74,0.00011232,2]
[352286629,1739028647350,-500.0,0.00011232,2]
[352286631,1739028647360,-500.0,0.00011232,2]
[352286633,1739028647369,-335.0,0.00011232,2]
[352286634,1739028647379,-15801.02,0.00011232,2]
[352286636,1739028647389,-1321.15,0.00011232,2]
[352286638,1739028647399,-500.0,0.00011232,2]
[352286640,1739028647407,-500.0,0.00011232,2]
[352286641,1739028647417,-500.0,0.00011232,2]
[352286643,1739028647427,-500.0,0.00011232,2]
[352286645,1739028647436,-500.0,0.00011232,2]
[352286647,1739028647447,-151.0,0.00011232,2]
[352286648,1739028647456,-500.0,0.00011232,2]
[352286650,1739028647467,-326.75827312,0.00011232,2]
[352286652,1739028647477,-151.0,0.00011232,2]
[352286653,1739028647486,-838.81,0.00011232,2]
[352286655,1739028647496,-500.0,0.00011232,2]
[352286657,1739028647505,-979.1,0.00011232,2]
[352286659,1739028647515,-500.0,0.00011232,2]
[352286661,1739028647526,-505.07,0.00011232,2]
[352286662,1739028647536,-340.1,0.00011232,2]
[352286664,1739028647547,-707.73,0.00011232,2]
[352286666,1739028647558,-500.0,0.00011232,2]
[352286668,1739028647573,-3291.13,0.00011232,2]
[352286670,1739028647583,-500.0,0.00011232,2]
[352286671,1739028647592,-1207.62,0.00011232,2]
[352286673,1739028647601,-323.919975,0.00011232,2]
[352286675,1739028647611,-500.0,0.00011232,2]
[352286677,1739028647621,-500.0,0.00011232,2]
[352286679,1739028647630,-500.0,0.00011232,2]
[352286681,1739028647640,-323.919975,0.00011232,2]
[352286683,1739028647649,-3595.4,0.00011232,2]
[352286684,1739028647658,-500.0,0.00011232,2]
[352286686,1739028647668,-500.0,0.00011232,2]
[352286688,1739028647677,-1135.95,0.00011232,2]
[352286690,1739028647687,-151.0,0.00011232,2]
[352286692,1739028647698,-500.0,0.00011232,2]
[352286694,1739028647707,-501.65443903,0.00011232,2]
[352286696,1739028647717,-500.0,0.00011232,2]
[352286698,1739028647727,-504.57467689,0.00011232,2]
[352286699,1739028647736,-500.0,0.00011232,2]
[352286701,1739028647746,-151.0,0.00011232,2]
[352286703,1739028647756,-1380.87,0.00011232,2]
[352286705,1739028647766,-500.0,0.00011232,2]
[352286707,1739028647775,-530.96614738,0.00011232,2]
[352286709,1739028647785,-151.0,0.00011232,2]
[352286710,1739028647795,-13809.36,0.00011232,2]
[352286712,1739028647804,-507.58,0.00011232,2]
[352286714,1739028647814,-500.0,0.00011232,2]
[352286716,1739028647823,-500.0,0.00011232,2]
[352286718,1739028647832,-4261.71,0.00011232,2]
[352286720,1739028647842,-500.0,0.00011232,2]
[352286721,1739028647852,-500.0,0.00011232,2]
[352286723,1739028647863,-1106.77,0.00011232,2]
[352286725,1739028647873,-1231.44,0.00011232,2]
[352286727,1739028647882,-1457.38,0.00011232,2]
[352286729,1739028647892,-500.0,0.00011232,2]
[352286731,1739028647903,-902.95,0.00011232,2]
[352286733,1739028647913,-500.0,0.00011232,2]
[352286734,1739028647923,-151.0,0.00011232,2]
[352286736,1739028647934,-500.0,0.00011232,2]
[352286738,1739028647944,-1648.45,0.00011232,2]
[352286740,1739028647955,-657.08,0.00011232,2]
[352286742,1739028647965,-151.0,0.00011232,2]
[352286744,1739028647976,-500.0,0.00011232,2]
[352286746,1739028647986,-40543.23,0.00011232,2]
[352286748,1739028647997,-500.0,0.00011232,2]
[352286749,1739028648007,-500.0,0.00011232,2]
[352286751,1739028648018,-500.0,0.00011232,2]
[352286753,1739028648029,-500.0,0.00011232,2]
[352286755,1739028648039,-500.0,0.00011232,2]
[352286757,1739028648048,-503.95681208,0.00011232,2]
[352286759,1739028648059,-409.847552,0.00011232,2]
[352286761,1739028648069,-500.0,0.00011232,2]
[352286762,1739028648079,-500.0,0.00011232,2]
[352286764,1739028648089,-500.0,0.00011232,2]
[352286766,1739028648100,-409.847552,0.00011232,2]
[352286768,1739028648110,-500.0,0.00011232,2]
[352286770,1739028648120,-1798.53,0.00011232,2]
[352286771,1739028648131,-500.0,0.00011232,2]
[352286773,1739028648142,-500.0,0.00011232,2]
[352286775,1739028648152,-500.0,0.00011232,2]
[352286777,1739028648162,-500.0,0.00011232,2]
[352286779,1739028648173,-500.0,0.00011232,2]
[352286780,1739028648183,-529.52977285,0.00011232,2]
[352286782,1739028648194,-151.0,0.00011232,2]
[352286784,1739028648205,-298.665351,0.00011232,2]
[352286786,1739028648215,-1087.96,0.00011232,2]
[352286788,1739028648225,-3375.81,0.00011232,2]
[352286789,1739028648236,-500.0,0.00011232,2]
[352286791,1739028648246,-500.0,0.00011232,2]
[352286793,1739028648256,-500.0,0.00011232,2]
[352286795,1739028648267,-517.54206974,0.00011232,2]
[352286797,1739028648278,-803.7,0.00011232,2]
[352286799,1739028648289,-7667.06,0.00011232,2]
[352286800,1739028648299,-500.0,0.00011232,2]
[352286802,1739028648310,-500.0,0.00011232,2]
[352286804,1739028648320,-3234.46,0.00011232,2]
[352286806,1739028648330,-1211.81,0.00011232,2]
[352286808,1739028648340,-1630.44,0.00011232,2]
[352286810,1739028648351,-500.0,0.00011232,2]
[352286811,1739028648362,-3066.49,0.00011232,2]
[352286813,1739028648372,-500.0,0.00011232,2]
[352286815,1739028648383,-759.68,0.00011232,2]
[352286817,1739028648394,-500.0,0.00011232,2]
[352286819,1739028648405,-500.0,0.00011232,2]
[352286821,1739028648416,-500.0,0.00011232,2]
[352286823,1739028648426,-1431.69,0.00011232,2]
[352286824,1739028648437,-723.31,0.00011232,2]
[352286826,1739028648449,-500.0,0.00011232,2]
[352286828,1739028648458,-4036.51,0.00011232,2]
[352286830,1739028648468,-1422.49,0.00011232,2]
[352286832,1739028648478,-500.0,0.00011232,2]
[352286833,1739028648489,-500.0,0.00011232,2]
[352286835,1739028648500,-1021.94,0.00011232,2]
[352286837,1739028648510,-934.34,0.00011232,2]
[352286839,1739028648522,-500.0,0.00011232,2]
[352286841,1739028648532,-500.0,0.00011232,2]
[352286843,1739028648542,-1181.28,0.00011232,2]
[352286845,1739028648553,-354.7727591,0.00011233,2]
[352286847,1739028648563,-354.7727591,0.00011233,2]
[352286848,1739028648574,-1000.0,0.00011247,2]
[352286850,1739028648587,-3000.0,0.00011269,2]
[352286852,1739028648597,-500.0,0.00011294,2]
[352286854,1739028648609,-12017.06073992,0.000113,3]
[352286856,1739028648619,-235.80371491,0.0001136,2]
[352286858,1739028648630,-500.0,0.00011369,2]
[352286860,1739028648642,-500.0,0.00011369,2]
[352286861,1739028648653,-528.29593004,0.00011369,2]
[352286863,1739028648666,-500.0,0.00011369,2]
[352286865,1739028648677,-500.0,0.00011369,2]
[352286867,1739028648688,-500.0,0.00011369,2]
[352286869,1739028648703,-224.552441,0.00011369,2]
[352286871,1739028648713,-224.552441,0.00011369,2]
[352286873,1739028648725,-224.552441,0.00011369,2]
[352286875,1739028648735,-224.552441,0.00011369,2]
[352286877,1739028648745,-850.583394,0.00011369,2]
[352286878,1739028648756,-850.583394,0.00011369,2]
[352286880,1739028648769,-500.0,0.00011369,2]
[352286882,1739028648779,-850.583394,0.00011369,2]
[352286884,1739028648791,-850.583394,0.00011369,2]
[352286885,1739028648801,-500.0,0.00011369,2]
[352286887,1739028648812,-500.0,0.00011369,2]
[352286889,1739028648822,-500.0,0.00011369,2]
[352286891,1739028648833,-500.0,0.00011369,2]
[352286893,1739028648844,-580.59,0.00011369,2]
[352286895,1739028648854,-151.0,0.00011369,2]
[352286897,1739028648865,-500.0,0.00011369,2]
[352286898,1739028648875,-500.0,0.00011369,2]
[352286900,1739028648884,-500.0,0.00011369,2]
[352286912,1739028649024,-343.41394,0.00011369,2]
[352286914,1739028649039,-343.41394,0.00011369,2]
[352286916,1739028649054,-343.41394,0.00011369,2]
[352286918,1739028649064,-343.41394,0.00011369,2]
[352286920,1739028649074,-500.0,0.00011369,2]
[352286922,1739028649085,-500.0,0.00011369,2]
[352286924,1739028649094,-500.0,0.00011369,2]
[352286925,1739028649104,-500.0,0.00011369,2]
[352286927,1739028649113,-252.348026,0.00011369,2]
[352286929,1739028649123,-252.348026,0.00011369,2]
[352286931,1739028649131,-500.0,0.00011369,2]
[352286933,1739028649140,-500.0,0.00011369,2]
[352286934,1739028649150,-759.3,0.00011369,2]
[352286936,1739028649160,-500.0,0.00011369,2]
[352286938,1739028649169,-1403.03,0.00011369,2]
[352286940,1739028649179,-500.0,0.00011369,2]
[352286942,1739028649188,-151.0,0.00011369,2]
[352286944,1739028649198,-271.939146,0.00011369,2]
[352286946,1739028649208,-151.0,0.00011369,2]
[352286947,1739028649217,-271.939146,0.00011369,2]
[352286949,1739028649227,-500.0,0.00011369,2]
[352286951,1739028649237,-271.939146,0.00011369,2]
[352286953,1739028649246,-271.939146,0.00011369,2]
[352286955,1739028649255,-500.0,0.00011369,2]
[352286956,1739028649267,-500.0,0.00011369,2]
[352286958,1739028649276,-728.24,0.00011369,2]
[352286960,1739028649286,-305.16282016,0.00011369,2]
[352286962,1739028649296,-500.0,0.00011369,2]
[352286964,1739028649306,-359.76153062,0.00011369,2]
[352286966,1739028649315,-500.0,0.00011369,2]
[352286967,1739028649325,-545.32,0.00011369,2]
[352286969,1739028649335,-1305.14,0.00011369,2]
[352286971,1739028649345,-500.0,0.00011369,2]
[352286973,1739028649355,-648.66,0.00011369,2]
[352286975,1739028649364,-1325.01,0.00011369,2]
[352286977,1739028649373,-552.73,0.00011369,2]
[352286979,1739028649383,-500.0,0.00011369,2]
[352286980,1739028649392,-500.0,0.00011369,2]
[352286982,1739028649402,-546.2,0.00011369,2]
[352286984,1739028649412,-500.0,0.00011369,2]
[352286986,1739028649421,-500.0,0.00011369,2]
[352286988,1739028649430,-500.0,0.00011369,2]
[352286990,1739028649441,-970.43,0.00011369,2]
[352286992,1739028649450,-1101.61299,0.00011369,2]
[352286993,1739028649460,-1101.61299,0.00011369,2]
[352286995,1739028649470,-500.0,0.00011369,2]
[352286997,1739028649480,-500.0,0.00011369,2]
[352286999,1739028649490,-507.76093265,0.00011369,2]
[352287001,1739028649499,-1101.61299,0.00011369,2]
[352287003,1739028649509,-500.0,0.00011369,2]
[352287005,1739028649519,-1101.61299,0.00011369,2]
[352287006,1739028649528,-500.0,0.00011369,2]
[352287008,1739028649537,-500.0,0.00011369,2]
[352287010,1739028649547,-789.607995,0.00011369,2]
[352287012,1739028649556,-500.0,0.00011369,2]
[352287014,1739028649569,-789.607995,0.00011369,2]
[352287016,1739028649579,-500.0,0.00011369,2]
[352287018,1739028649588,-500.0,0.00011369,2]
[352287020,1739028649598,-500.0,0.00011369,2]
[352287022,1739028649609,-500.0,0.00011369,2]
[352287023,1739028649618,-500.0,0.00011369,2]
[352287025,1739028649628,-500.0,0.00011369,2]
[352287027,1739028649638,-1270.63,0.00011369,2]
[352287029,1739028649650,-1078.52,0.00011369,2]
[352287031,1739028649661,-610.78,0.00011369,2]
[352287033,1739028649671,-500.0,0.00011369,2]
[352287035,1739028649680,-151.0,0.00011369,2]
[352287037,1739028649692,-151.0,0.00011369,2]
[352287038,1739028649702,-500.0,0.00011369,2]
[352287040,1739028649712,-301.28744575,0.00011369,2]
[352287042,1739028649723,-500.0,0.00011369,2]
[352287044,1739028649733,-500.0,0.00011369,2]
[352287046,1739028649743,-151.0,0.00011369,2]
[352287048,1739028649752,-977.07,0.00011369,2]
[352287050,1739028649762,-500.0,0.00011369,2]
[352287052,1739028649772,-500.0,0.00011369,2]
[352287054,1739028649782,-500.43,0.00011369,2]
[352287056,1739028649791,-500.0,0.00011369,2]
[352287057,1739028649800,-606.56,0.00011369,2]
[352287059,1739028649810,-500.0,0.00011369,2]
[352287060,1739028649819,-500.0,0.00011369,2]
[352287062,1739028649828,-636.281112,0.00011369,2]
[352287064,1739028649837,-156.241418,0.00011369,2]
[352287065,1739028649846,-156.241418,0.00011369,2]
[352287067,1739028649855,-1089.29,0.00011369,2]
[352287069,1739028649864,-636.281112,0.00011369,2]
[352287071,1739028649873,-156.241418,0.00011369,2]
[352287073,1739028649884,-156.241418,0.00011369,2]
[352287074,1739028649894,-500.0,0.00011369,2]
[352287076,1739028649903,-500.0,0.00011369,2]
[352287078,1739028649912,-368.655151,0.00011369,2]
[352287080,1739028649923,-500.0,0.00011369,2]
[352287081,1739028649933,-368.655151,0.00011369,2]
[352287083,1739028649945,-500.0,0.00011369,2]
[352287085,1739028649954,-500.0,0.00011369,2]
[352287087,1739028649963,-151.0,0.00011369,2]
[352287088,1739028649972,-151.0,0.00011369,2]
[352287089,1739028649982,-500.0,0.00011369,2]
[352287090,1739028649991,-500.0,0.00011369,2]
[352287091,1739028650000,-262.55,0.00011369,2]
[352287092,1739028650009,-262.55,0.00011369,2]
[352287093,1739028650019,-739.39,0.00011369,2]
[352287094,1739028650028,-500.0,0.00011369,2]
[352287095,1739028650038,-262.55,0.00011369,2]
[352287096,1739028650047,-262.55,0.00011369,2]
[352287097,1739028650057,-500.0,0.00011369,2]
[352287098,1739028650066,-659.83,0.00011369,2]
[352287099,1739028650075,-519.09,0.00011369,2]
[352287100,1739028650085,-500.0,0.00011369,2]
[352287101,1739028650094,-500.0,0.00011369,2]
[352287102,1739028650103,-500.0,0.00011369,2]
[352287103,1739028650113,-500.0,0.00011369,2]
[352287104,1739028650122,-500.0,0.00011369,2]